bitfinex/quotes_SOLUSD_20251116
["timestamp","ask_amount","ask_price","bid_price","bid_amount"]
[1763323548873,0.69,137.54,137.51,14.61391903]
[1763323549577,126.5412,137.56,137.51,15.33391903]
[1763323549778,0.69,137.55,137.51,15.33391903]
[1763323550193,125.8512,137.56,137.51,15.33391903]
[1763323550194,103.2,137.56,137.53,14.61391903]
[1763323550375,103.2,137.56,137.53,15.33391903]
[1763323550571,0.69,137.57,137.53,15.33391903]
[1763323550899,0.69,137.57,137.54,4.82509134]
[1763323551679,0.69,137.57,137.53,14.61391903]
[1763323551873,0.69,137.57,137.53,4.82509134]
[1763323552075,0.69,137.57,137.53,9.78882769]
[1763323552489,5.51509134,137.57,137.53,9.78882769]
[1763323552780,3.77633821,137.57,137.53,9.78882769]
[1763323553001,0.69,137.56,137.53,9.78882769]
[1763323553895,0.69,137.56,137.53,12.8751659]
[1763323554209,0.69,137.56,137.51,3.08633821]
[1763323554382,3.77633821,137.56,137.5,3.80633821]
[1763323554804,0.69,137.55,137.5,3.80633821]
[1763323555103,0.69,137.55,137.51,3.08633821]
[1763323555783,0.69,137.55,137.52,12.8751659]
[1763323556597,3.08633821,137.57,137.52,12.8751659]
[1763323556796,0.69,137.56,137.52,13.5951659]
[1763323557505,0.69,137.56,137.53,0.72]
[1763323557707,0.69,137.56,137.52,12.8751659]
[1763323557883,0.69,137.56,137.52,13.5951659]
[1763323558493,0.69,137.56,137.52,12.8751659]
[1763323558788,0.69,137.56,137.52,13.5951659]
[1763323558990,103.2,137.57,137.55,12.8751659]
[1763323559204,0.69,137.6,137.55,9.78882769]
[1763323559409,0.69,137.6,137.56,3.80633821]
[1763323559984,103.4,137.61,137.57,13.5951659]
[1763323560305,103.4,137.61,137.58,3.75633821]
[1763323560480,104.12,137.61,137.58,3.75633821]
[1763323560792,103.4,137.61,137.58,0.67]
[1763323561689,103.4,137.61,137.58,3.75633821]
[1763323562096,103.4,137.61,137.58,0.67]
[1763323562833,0.72,137.6,137.54,0.67]
[1763323562992,0.72,137.6,137.56,3.08633821]
[1763323563198,3.08633821,137.59,137.51,22.6512]
[1763323563411,3.08633821,137.59,137.54,9.78882769]
[1763323563599,0.72,137.58,137.54,12.8751659]
[1763323563904,0.72,137.58,137.48,12.34535284]
[1763323563905,22.6512,137.6,137.56,12.8751659]
[1763323564288,103.4,137.61,137.58,9.78882769]
[1763323564488,0.2,137.61,137.58,12.8751659]
[1763323564807,0.2,137.61,137.59,3.75633821]
[1763323566704,0.2,137.61,137.6,9.78882769]
[1763323566900,0.2,137.61,137.6,17.79974739]
[1763323567407,0.1,137.63,137.6,47.79186709]
[1763323567602,0.1,137.63,137.62,17.12974739]
[1763323568000,0.1,137.63,137.62,17.79974739]
[1763323569018,0.1,137.63,137.62,7.3409197]
[1763323569220,0.82,137.63,137.61,9.78882769]
[1763323569392,0.1,137.63,137.62,17.12974739]
[1763323569600,0.1,137.63,137.62,9.78882769]
[1763323570701,0.1,137.63,137.61,7.3409197]
[1763323570896,0.82,137.63,137.61,17.12974739]
[1763323571098,0.82,137.63,137.61,9.78882769]
[1763323571823,23.4712,137.63,137.61,9.78882769]
[1763323572196,23.4712,137.63,137.61,17.12974739]
[1763323572197,0.72,137.62,137.61,17.12974739]
[1763323572721,22.6512,137.59,137.55,0.67]
[1763323572903,8.66,137.58,137.56,10.45882769]
[1763323573294,8.66,137.58,137.57,10.45882769]
[1763323573897,8.66,137.58,137.57,17.79974739]
[1763323574520,126.5712,137.62,137.58,9.78882769]
[1763323574826,22.6512,137.59,137.58,7.3409197]
[1763323575207,23.3712,137.59,137.58,7.3409197]
[1763323575413,23.3712,137.59,137.58,17.12974739]
[1763323575414,22.6512,137.59,137.58,17.12974739]
[1763323575810,8.66,137.6,137.59,9.78882769]
[1763323576010,8.66,137.6,137.59,24.47066709]
[1763323576212,0.1,137.63,137.59,24.47066709]
[1763323576410,0.1,137.63,137.62,17.12974739]
[1763323576819,0.1,137.63,137.62,17.79974739]
[1763323577014,0.69,137.68,137.63,9.78882769]
[1763323577221,0.69,137.68,137.67,17.12974739]
[1763323577856,22.6512,137.7,137.68,9.78882769]
[1763323578026,110.6409197,137.75,137.7,9.78882769]
[1763323578210,0.79,137.71,137.7,9.78882769]
[1763323579319,0.79,137.71,137.69,7.3409197]
[1763323580607,0.79,137.71,137.66,9.78882769]
[1763323580814,22.6512,137.7,137.69,17.12974739]
[1763323581430,23.3412,137.7,137.69,17.12974739]
[1763323583737,23.3412,137.65,137.64,17.12974739]
[1763323584225,22.6512,137.64,137.63,17.12974739]
[1763323584429,23.3412,137.64,137.63,17.12974739]
[1763323585230,22.6512,137.64,137.63,17.12974739]
[1763323586023,22.6512,137.65,137.64,9.78882769]
[1763323586230,0.69,137.66,137.64,17.12974739]
[1763323587229,103.2,137.67,137.66,9.78882769]
[1763323587441,103.89,137.67,137.66,17.12974739]
[1763323590439,103.86,137.67,137.66,17.12974739]
[1763323592050,103.86,137.67,137.66,9.78882769]
[1763323592216,103.86,137.67,137.66,17.12974739]
[1763323592741,103.2,137.67,137.66,17.82974739]
[1763323595836,0.1,137.71,137.66,25.09396259]
[1763323596047,0.1,137.71,137.7,17.12974739]
[1763323596345,22.7512,137.71,137.7,17.12974739]
[1763323596840,0.1,137.71,137.7,12.86656248]
[1763323597218,0.1,137.71,137.7,13.56656248]
[1763323597419,0.1,137.75,137.71,17.05025625]
[1763323597619,22.7512,137.75,137.74,12.86656248]
[1763323598042,0.1,137.75,137.74,12.86656248]
[1763323598236,22.7512,137.75,137.74,12.86656248]
[1763323598421,22.7512,137.75,137.74,12.94915363]
[1763323598819,0.1,137.75,137.74,12.94915363]
[1763323599044,0.1,137.75,137.74,12.24915363]
[1763323599234,22.7512,137.75,137.74,12.24915363]
[1763323599433,0.1,137.75,137.74,12.94915363]
[1763323600928,0.1,137.75,137.74,16.34545353]
[1763323604745,0.1,137.75,137.74,9.78882769]
[1763323604928,0.1,137.75,137.74,15.64545353]
[1763323605850,0.1,137.75,137.74,16.34545353]
[1763323608469,0.1,137.76,137.74,22.20207937]
[1763323608668,0.1,137.79,137.78,15.64545353]
[1763323608886,0.66,137.87,137.83,21.50207937]
[1763323609169,0.66,137.86,137.83,15.64545353]
[1763323609327,0.76,137.84,137.83,15.64545353]
[1763323609534,0.1,137.84,137.83,15.64545353]
[1763323610925,0.66,137.9,137.84,9.78882769]
[1763323611155,0.66,137.92,137.9,9.78882769]
[1763323611360,0.66,137.92,137.84,6.55662584]
[1763323611361,5.85662584,137.99,137.92,9.78882769]
[1763323611533,22.6512,137.95,137.93,5.85662584]
[1763323611730,6.51662584,137.98,137.93,5.85662584]
[1763323611939,22.6512,137.95,137.93,5.85662584]
[1763323612354,0.66,137.94,137.93,5.85662584]
[1763323612952,0.66,137.94,137.93,15.64545353]
[1763323613364,0.66,137.94,137.92,5.85662584]
[1763323613562,0.66,137.94,137.92,15.64545353]
[1763323613761,0.66,137.94,137.92,5.85662584]
[1763323613942,0.66,137.94,137.84,35.76211861]
[1763323613943,22.6512,137.92,137.9,5.85662584]
[1763323614145,22.6512,137.92,137.91,9.78882769]
[1763323614363,22.6512,137.93,137.91,9.78882769]
[1763323614535,22.6512,137.93,137.84,5.85662584]
[1763323614865,0.66,137.92,137.9,10.17874571]
[1763323615393,0.66,137.92,137.91,10.17874571]
[1763323615559,0.66,137.92,137.91,19.9675734]
[1763323615737,0.66,137.92,137.91,9.78882769]
[1763323615933,23.3112,137.92,137.91,9.78882769]
[1763323616867,23.3112,137.92,137.9,10.17874571]
[1763323617039,0.66,137.91,137.9,19.9675734]
[1763323618762,10.17874571,137.99,137.91,9.78882769]
[1763323619063,0.66,137.96,137.95,9.78882769]
[1763323619261,0.66,137.96,137.95,19.9675734]
[1763323619455,23.3112,137.98,137.95,19.9675734]
[1763323619637,0.66,137.97,137.96,10.17874571]
[1763323620748,22.6512,137.96,137.94,10.17874571]
[1763323620949,22.6512,137.96,137.9,0.72]
[1763323621149,22.6512,137.96,137.94,9.78882769]
[1763323621350,10.17874571,137.98,137.95,9.78882769]
[1763323621570,22.6512,137.99,137.88,9.78882769]
[1763323621745,1.99999999,138.01,137.93,9.78882769]
[1763323621746,22.6512,137.94,137.93,9.78882769]
[1763323622149,23.3512,137.94,137.93,9.78882769]
[1763323622462,0.7,137.97,137.93,19.9675734]
[1763323622640,23.3512,137.97,137.95,9.78882769]
[1763323622839,23.3512,137.97,137.95,19.9675734]
[1763323623070,22.6512,137.97,137.95,19.9675734]
[1763323623849,22.6512,137.97,137.95,9.78882769]
[1763323624068,22.6512,137.97,137.96,10.17874571]
[1763323625094,22.6512,137.96,137.95,9.78882769]
[1763323625250,23.3512,137.96,137.92,9.78882769]
[1763323625574,23.3512,137.96,137.91,0.72]
[1763323625575,0.7,137.95,137.91,10.17874571]
[1763323625773,0.7,137.95,137.92,9.78882769]
[1763323625955,10.17874571,137.93,137.85,9.78882769]
[1763323626274,33.52994571,137.95,137.9,10.17874571]
[1763323626447,0.7,137.94,137.91,9.78882769]
[1763323626864,22.6512,137.92,137.86,0.72]
[1763323627060,22.6512,137.92,137.88,10.17874571]
[1763323627368,0.7,137.91,137.88,9.78882769]
[1763323628165,22.6512,137.9,137.89,9.78882769]
[1763323628555,22.6512,137.9,137.87,19.9675734]
[1763323628972,10.87874571,137.92,137.87,19.9675734]
[1763323629182,0.7,137.91,137.87,19.9675734]
[1763323629681,0.7,137.91,137.86,10.17874571]
[1763323629973,0.7,137.91,137.87,9.78882769]
[1763323630276,10.87874571,137.91,137.87,9.78882769]
[1763323631148,0.7,137.9,137.87,9.78882769]
[1763323631678,33.52994571,137.92,137.88,9.78882769]
[1763323631864,23.3512,137.92,137.88,20.6875734]
[1763323632060,22.6512,137.92,137.88,10.50882769]
[1763323632270,22.6512,137.92,137.9,9.78882769]
[1763323632575,0.7,137.91,137.9,9.78882769]
[1763323632759,0.7,137.91,137.87,9.78882769]
[1763323633078,22.6512,137.92,137.89,9.78882769]
[1763323633583,22.6512,137.92,137.89,20.6875734]
[1763323634967,22.6512,137.92,137.89,10.50882769]
[1763323635169,103.2,137.96,137.91,19.9675734]
[1763323635478,103.2,137.96,137.92,10.17874571]
[1763323635688,103.2,137.96,137.92,10.86874571]
[1763323635853,0.72,137.95,137.91,10.17874571]
[1763323636053,10.17874571,137.94,137.91,9.78882769]
[1763323636254,10.17874571,137.94,137.9,9.78882769]
[1763323636469,10.89874571,137.94,137.9,9.78882769]
[1763323636671,0.72,137.94,137.9,19.9675734]
[1763323636883,103.2,137.96,137.88,10.17874571]
[1763323636884,10.89874571,137.93,137.88,10.17874571]
[1763323637183,10.89874571,137.93,137.89,9.78882769]
[1763323637356,10.89874571,137.93,137.87,0.69]
[1763323637357,10.17874571,137.91,137.87,9.78882769]
[1763323637757,10.89874571,137.91,137.87,9.78882769]
[1763323637972,0.72,137.9,137.87,9.78882769]
[1763323639071,10.89874571,137.9,137.86,9.78882769]
[1763323639460,10.89874571,137.9,137.86,10.47882769]
[1763323639860,10.17874571,137.92,137.87,10.47882769]
[1763323640095,10.89874571,137.92,137.87,10.47882769]
[1763323640389,10.89874571,137.92,137.87,9.78882769]
[1763323640568,22.6512,137.9,137.89,9.78882769]
[1763323640769,22.6512,137.9,137.87,9.78882769]
[1763323640992,0.72,137.92,137.87,20.6575734]
[1763323641188,32.82994571,137.93,137.89,9.78882769]
[1763323641483,22.6512,137.93,137.89,9.78882769]
[1763323641658,23.3712,137.93,137.89,9.78882769]
[1763323642591,33.54994571,137.93,137.88,0.69]
[1763323642763,23.3712,137.93,137.89,10.47882769]
[1763323642962,33.54994571,137.93,137.89,10.47882769]
[1763323644296,23.3712,137.93,137.89,20.6575734]
[1763323644586,103.2,137.96,137.93,9.78882769]
[1763323644792,0.72,137.99,137.95,19.9675734]
[1763323645084,10.89874571,138.0,137.95,19.9675734]
[1763323645292,0.72,137.99,137.95,20.6575734]
[1763323645466,103.2,138.03,137.95,19.9675734]
[1763323645666,0.72,138.0,137.97,9.78882769]
[1763323646495,10.89874571,138.03,137.99,9.78882769]
[1763323646679,103.92,138.05,137.99,20.6575734]
[1763323646871,0.72,138.04,137.99,20.6575734]
[1763323647060,22.6512,138.02,137.99,20.6575734]
[1763323647268,22.6512,138.02,137.99,10.47882769]
[1763323647471,113.37874571,138.05,138.01,9.78882769]
[1763323647676,103.92,138.05,138.01,9.78882769]
[1763323647902,0.72,138.04,138.01,9.78882769]
[1763323648094,0.72,138.04,138.01,19.9675734]
[1763323648296,0.72,138.07,138.02,10.17874571]
[1763323648468,10.89874571,138.07,138.03,9.78882769]
[1763323648992,22.6512,138.05,138.03,9.78882769]
[1763323649475,0.1,138.08,138.04,20.6575734]
[1763323649981,0.1,138.08,138.05,10.17874571]
[1763323650186,0.1,138.08,138.06,9.78882769]
[1763323650395,0.1,138.08,138.07,19.9675734]
[1763323650687,0.1,138.08,138.07,9.78882769]
[1763323651794,0.1,138.08,138.03,0.67]
[1763323652095,0.1,138.08,138.06,9.78882769]
[1763323652389,0.1,138.08,138.07,9.78882769]
[1763323652575,0.1,138.08,138.05,19.9675734]
[1763323652976,0.1,138.08,138.0,22.6512]
[1763323652977,0.79,138.08,138.0,22.6512]
[1763323653169,0.79,138.08,138.01,0.67]
[1763323653170,10.17874571,138.07,138.01,0.67]
[1763323653373,10.17874571,138.07,138.03,9.78882769]
[1763323653586,10.17874571,138.04,137.97,0.67]
[1763323653890,10.17874571,138.03,137.97,0.67]
[1763323654067,0.1,138.08,138.03,9.78882769]
[1763323654268,0.1,138.08,138.07,19.9675734]
[1763323654896,0.1,138.08,138.07,20.6375734]
[1763323659602,0.1,138.08,138.07,19.9675734]
[1763323660201,0.1,138.08,138.07,20.6375734]
[1763323662499,0.1,138.08,138.07,27.88027637]
[1763323662806,0.1,138.08,138.07,20.6375734]
[1763323663399,0.1,138.08,138.07,27.88027637]
[1763323665905,0.69,138.14,138.08,9.78882769]
[1763323666085,0.69,138.14,138.13,9.78882769]
[1763323666289,0.69,138.14,138.11,10.17874571]
[1763323666481,0.69,138.14,138.05,0.67]
[1763323666682,0.69,138.14,138.04,22.6512]
[1763323666683,0.69,138.14,138.1,10.17874571]
[1763323667926,0.69,138.16,138.13,19.9675734]
[1763323668405,23.3412,138.16,138.13,19.9675734]
[1763323668795,0.69,138.15,138.13,9.78882769]
[1763323669788,0.69,138.15,138.14,9.78882769]
[1763323670884,10.17874571,138.19,138.15,9.78882769]
[1763323670885,23.3412,138.19,138.15,9.78882769]
[1763323671080,0.69,138.18,138.16,10.17874571]
[1763323671597,0.69,138.18,138.16,9.78882769]
[1763323672811,0.69,138.18,138.13,9.78882769]
[1763323673107,0.69,138.18,138.14,10.17874571]
[1763323674192,0.69,138.18,138.16,9.78882769]
[1763323675896,0.69,138.18,138.15,5.82392928]
[1763323681100,29.16512928,138.18,138.12,5.82392928]
[1763323681421,23.3412,138.18,138.15,15.61275697]
[1763323681626,23.3412,138.18,138.15,5.82392928]
[1763323681928,0.71,138.17,138.15,5.82392928]
[1763323682315,0.71,138.17,138.15,9.78882769]
[1763323682731,0.71,138.19,138.15,5.82392928]
[1763323682898,28.47512928,138.2,138.15,5.82392928]
[1763323683103,0.71,138.19,138.15,5.82392928]
[1763323683719,0.71,138.19,138.17,9.78882769]
[1763323684423,0.71,138.2,138.17,15.61275697]
[1763323684723,0.71,138.19,138.17,9.78882769]
[1763323685029,0.71,138.19,138.16,9.78882769]
[1763323685805,0.71,138.19,138.16,5.82392928]
[1763323686630,109.02392928,138.21,138.16,5.82392928]
[1763323686805,103.91,138.21,138.18,9.78882769]
[1763323687002,5.82392928,138.19,138.11,0.69]
[1763323687202,5.82392928,138.15,138.09,0.69]
[1763323687520,5.82392928,138.15,138.1,5.82392928]
[1763323687703,6.53392928,138.15,138.1,5.82392928]
[1763323687904,0.71,138.14,138.11,9.78882769]
[1763323688525,6.53392928,138.16,138.11,16.30275697]
[1763323688710,0.71,138.16,138.11,16.30275697]
[1763323689417,28.47512928,138.18,138.12,0.69]
[1763323689613,5.82392928,138.14,138.09,16.30275697]
[1763323689809,5.82392928,138.14,138.09,9.78882769]
[1763323690031,6.53392928,138.13,138.08,9.78882769]
[1763323690526,0.71,138.12,138.08,10.47882769]
[1763323691237,5.82392928,138.11,138.06,22.6512]
[1763323691404,5.82392928,138.1,138.07,9.78882769]
[1763323691731,5.82392928,138.1,138.06,9.78882769]
[1763323691943,0.71,138.09,138.06,9.78882769]
[1763323693728,0.71,138.09,138.06,15.61275697]
[1763323694103,0.71,138.09,138.06,9.78882769]
[1763323695929,0.71,138.09,138.04,15.61275697]
[1763323695930,6.53392928,138.09,138.04,15.61275697]
[1763323696116,6.53392928,138.09,138.04,16.32275697]
[1763323696298,6.51392928,138.08,138.04,9.78882769]
[1763323696498,6.51392928,138.08,137.96,69.80204792]
[1763323696499,5.82392928,138.06,138.02,9.78882769]
[1763323696929,0.69,138.05,138.02,9.78882769]
[1763323697110,6.51392928,138.06,138.02,0.71]
[1763323697424,6.51392928,138.05,138.0,9.78882769]
[1763323697632,6.51392928,138.05,138.0,10.49882769]
[1763323697808,5.82392928,138.05,138.0,15.61275697]
[1763323698009,0.69,138.05,138.01,0.71]
[1763323699108,6.51392928,138.05,138.0,15.61275697]
[1763323699531,6.51392928,138.05,138.01,0.71]
[1763323699532,0.69,138.05,138.01,0.71]
[1763323699720,0.69,138.05,138.0,22.85907095]
[1763323700405,0.69,138.05,138.0,15.61275697]
[1763323700606,6.51392928,138.05,138.0,15.11275697]
[1763323701010,0.69,138.05,138.0,15.11275697]
[1763323701236,0.69,138.04,138.0,22.35913257]
[1763323701430,0.69,138.04,138.0,21.85913257]
[1763323701640,0.69,138.04,138.0,15.32275697]
[1763323703512,0.69,138.04,138.0,14.61275697]
[1763323703712,5.82392928,138.02,137.98,9.78882769]
[1763323704232,0.69,138.01,137.97,9.78882769]
[1763323704618,6.51392928,138.01,137.97,9.78882769]
[1763323704818,6.51392928,138.01,137.96,9.78882769]
[1763323705025,6.51392928,138.0,137.96,9.78882769]
[1763323705724,0.69,137.99,137.96,9.78882769]
[1763323706249,0.69,137.99,137.94,15.81275697]
[1763323706538,0.69,137.99,137.94,16.52275697]
[1763323707236,5.82392928,137.97,137.94,0.2]
[1763323707411,0.69,137.99,137.94,0.2]
[1763323707612,5.82392928,137.95,137.94,0.2]
[1763323708037,6.51392928,137.95,137.94,0.2]
[1763323709437,6.51392928,137.95,137.88,9.78882769]
[1763323709611,5.82392928,137.93,137.88,9.78882769]
[1763323709809,5.82392928,137.93,137.88,6.53392928]
[1763323710039,0.69,137.96,137.92,9.78882769]
[1763323710336,28.47512928,137.97,137.95,9.78882769]
[1763323710337,0.68,137.97,137.95,9.78882769]
[1763323710535,6.50392928,137.99,137.94,5.82392928]
[1763323710716,6.50392928,137.99,137.95,9.78882769]
[1763323710913,0.68,137.98,137.95,9.78882769]
[1763323711138,0.68,137.98,137.94,9.78882769]
[1763323712241,6.50392928,137.98,137.94,9.78882769]
[1763323712626,0.68,137.97,137.94,9.78882769]
[1763323712825,103.88,137.97,137.88,1.99999999]
[1763323713014,5.82392928,137.95,137.9,15.61275697]
[1763323713443,0.68,137.96,137.9,16.31275697]
[1763323713444,0.68,137.94,137.9,16.31275697]
[1763323713648,0.68,137.95,137.91,5.82392928]
[1763323715340,103.2,137.97,137.95,9.78882769]
[1763323715643,103.2,137.97,137.94,9.78882769]
[1763323715815,103.2,137.97,137.94,10.48882769]
[1763323716316,103.2,137.97,137.94,16.31275697]
[1763323716512,5.82392928,138.0,137.95,6.52392928]
[1763323716725,6.50392928,138.0,137.95,6.52392928]
[1763323717337,0.68,137.99,137.95,6.52392928]
[1763323717540,103.2,138.01,137.96,10.48882769]
[1763323717721,109.70392928,138.01,137.96,16.31275697]
[1763323718124,0.68,138.0,137.96,10.48882769]
[1763323719053,0.68,138.0,137.96,16.31275697]
[1763323719345,0.68,138.0,137.96,23.56119923]
[1763323719549,0.68,138.0,137.96,16.31275697]
[1763323719854,0.68,138.0,137.96,10.48882769]
[1763323720048,0.68,138.0,137.96,16.31275697]
[1763323720250,109.02392928,138.01,137.96,16.31275697]
[1763323720445,109.70392928,138.01,137.97,0.7]
[1763323721125,109.70392928,138.01,137.96,15.61275697]
[1763323721433,109.70392928,138.01,137.96,10.48882769]
[1763323722750,0.68,138.0,137.96,10.48882769]
[1763323723424,103.2,138.01,137.97,0.7]
[1763323723744,103.88,138.01,137.97,0.7]
[1763323724044,0.68,138.0,137.96,15.61275697]
[1763323724350,0.68,138.0,137.96,16.31275697]
[1763323724922,6.50392928,138.0,137.95,9.78882769]
[1763323725220,6.50392928,138.0,137.95,16.31275697]
[1763323725548,6.50392928,138.0,137.96,0.7]
[1763323725926,0.68,137.99,137.95,9.78882769]
[1763323726149,6.50392928,137.99,137.95,9.78882769]
[1763323726534,6.50392928,137.98,137.94,9.78882769]
[1763323727045,0.68,137.98,137.94,16.31275697]
[1763323727239,5.82392928,138.0,137.94,15.61275697]
[1763323727441,6.50392928,138.0,137.95,0.7]
[1763323727642,6.50392928,137.99,137.95,0.7]
[1763323727975,6.50392928,137.99,137.94,15.61275697]
[1763323728121,103.2,138.01,137.94,9.78882769]
[1763323728122,6.50392928,137.98,137.94,9.78882769]
[1763323728524,0.68,137.97,137.94,9.78882769]
[1763323728928,6.50392928,137.97,137.93,9.78882769]
[1763323729332,0.68,137.97,137.93,6.52392928]
[1763323730924,0.68,137.97,137.93,5.82392928]
[1763323731124,0.68,137.97,137.92,5.82392928]
[1763323732057,0.68,137.97,137.93,9.78882769]
[1763323732843,103.2,138.01,137.96,9.78882769]
[1763323732844,3.13345938,138.0,137.96,9.78882769]
[1763323733048,0.68,138.0,137.96,9.78882769]
[1763323733370,103.2,138.01,137.98,9.78882769]
[1763323733534,103.2,138.01,137.98,10.00882769]
[1763323734072,103.2,138.01,137.98,9.78882769]
[1763323735332,103.2,138.01,137.96,7.4684635]
[1763323735524,0.68,138.0,137.97,9.78882769]
[1763323735730,103.88,138.01,137.97,9.78882769]
[1763323735934,187.6512,138.06,137.98,5.83809722]
[1763323735935,6.51809722,138.03,137.98,5.83809722]
[1763323736136,5.83809722,138.03,137.98,5.83809722]
[1763323736344,0.68,138.02,137.98,5.83809722]
[1763323736855,0.68,138.02,137.99,9.78882769]
[1763323737351,0.68,138.02,137.98,9.78882769]
[1763323739640,0.68,138.02,137.98,19.95289442]
[1763323739837,0.68,138.02,137.98,27.19995058]
[1763323740039,103.2,138.05,138.0,9.78882769]
[1763323740040,113.36406673,138.05,138.0,9.78882769]
[1763323740238,0.7,138.04,138.0,9.78882769]
[1763323740636,10.86406673,138.04,137.96,22.6512]
[1763323740851,10.16406673,138.03,137.98,9.78882769]
[1763323741160,10.86406673,138.03,137.99,9.78882769]
[1763323741364,0.7,138.02,137.99,9.78882769]
[1763323742230,0.7,138.02,137.98,19.95289442]
[1763323742637,103.2,138.05,138.02,9.78882769]
[1763323742871,0.7,138.05,138.03,9.78882769]
[1763323743163,0.7,138.04,137.99,10.38406673]
[1763323743364,0.7,138.04,138.01,9.78882769]
[1763323743762,0.7,138.04,138.01,19.95289442]
[1763323744464,0.7,138.06,138.02,10.16406673]
[1763323744972,10.16406673,138.08,138.04,9.78882769]
[1763323745164,10.86406673,138.08,138.04,9.78882769]
[1763323745371,0.7,138.07,138.05,9.78882769]
[1763323745674,0.7,138.07,138.04,9.78882769]
[1763323746437,10.86406673,138.07,138.03,9.78882769]
[1763323746870,0.7,138.06,138.03,9.78882769]
[1763323747058,10.86406673,138.07,138.03,9.78882769]
[1763323747460,0.7,138.07,138.04,9.78882769]
[1763323748175,10.86406673,138.07,138.03,9.78882769]
[1763323748553,0.7,138.06,138.03,9.78882769]
[1763323749579,0.7,138.06,138.03,19.95289442]
[1763323749961,0.7,138.08,138.03,27.41762473]
[1763323750164,0.7,138.07,138.04,10.16406673]
[1763323750493,0.7,138.07,138.03,19.95289442]
[1763323751660,0.7,138.07,138.01,7.46552163]
[1763323751661,10.86406673,138.07,138.01,0.22]
[1763323751865,10.16406673,138.06,138.02,9.78882769]
[1763323752171,10.86406673,138.06,138.02,9.78882769]
[1763323752690,10.86406673,138.06,138.03,9.78882769]
[1763323752691,0.7,138.06,138.03,9.78882769]
[1763323753793,0.7,138.07,138.04,9.78882769]
[1763323754080,0.7,138.06,138.04,9.78882769]
[1763323754877,0.7,138.06,138.03,13.61720447]
[1763323755270,0.7,138.06,138.02,3.82837678]
[1763323755472,0.7,138.06,137.99,22.45715216]
[1763323755473,3.82837678,138.05,138.03,9.78882769]
[1763323755783,3.82837678,138.05,138.01,13.61720447]
[1763323755955,4.52837678,138.05,138.01,13.61720447]
[1763323756158,0.7,138.04,138.01,13.61720447]
[1763323756358,0.7,138.04,138.0,13.61720447]
[1763323756574,0.7,138.04,138.0,13.83720447]
[1763323757083,0.7,138.04,138.0,3.82837678]
[1763323758072,0.7,138.04,138.01,9.78882769]
[1763323758886,3.82837678,138.03,138.0,9.78882769]
[1763323759268,0.7,138.02,137.98,3.82837678]
[1763323759868,3.82837678,138.01,137.96,3.82837678]
[1763323760085,4.52837678,138.02,137.97,13.61720447]
[1763323760267,0.7,138.01,137.97,13.61720447]
[1763323760789,0.7,138.03,137.98,4.04837678]
[1763323760992,4.52837678,138.04,137.98,4.04837678]
[1763323761181,0.7,138.03,137.98,4.04837678]
[1763323761379,107.02837678,138.05,138.0,3.82837678]
[1763323761585,0.7,138.04,138.0,9.78882769]
[1763323762069,4.52837678,138.04,138.0,9.78882769]
[1763323762269,0.7,138.03,138.0,9.78882769]
[1763323762971,103.2,138.05,138.0,9.78882769]
[1763323763180,0.7,138.04,138.0,13.61720447]
[1763323764183,4.52837678,138.04,138.0,9.78882769]
[1763323764388,0.7,138.04,138.0,13.61720447]
[1763323764588,0.7,138.03,138.0,9.78882769]
[1763323764794,3.82837678,138.02,137.96,9.78882769]
[1763323764998,3.82837678,138.02,137.97,3.82837678]
[1763323765185,0.7,138.01,137.97,3.82837678]
[1763323765693,4.52837678,138.01,137.96,13.61720447]
[1763323765897,4.52837678,138.01,137.96,13.83720447]
[1763323766078,0.7,138.0,137.96,13.83720447]
[1763323766595,0.7,138.0,137.97,3.82837678]
[1763323767881,0.7,138.01,137.97,3.82837678]
[1763323768886,0.7,138.01,137.98,3.82837678]
[1763323770509,0.7,138.01,137.97,3.82837678]